[Event "Titled Tuesday Blitz November 15 Late 2022"]
[White "Karas, Marek"]
[Black "Tanenbaum, Zachary"]
[WhiteFideId "14928558"]
[BlackFideId "2060850"]
[WhiteElo "2220"]
[BlackElo "2175"]
[Result "0-1"]
[Round "07"]
[TimeControl "180+1"]
[Date "2022.11.16"]
[WhiteClock "0:00:02"]
[BlackClock "0:00:14"]

1. d4 {[%clk 0:02:59]}  d5 {[%clk 0:02:59]} 2. c4 {[%clk 0:02:59]}  dxc4 {[%clk 0:03:00]} 3. Nf3 {[%clk 0:02:59]}  Nf6 {[%clk 0:02:58]} 4. e3 {[%clk 0:02:57]}  Bg4 {[%clk 0:02:58]} 5. Bxc4 {[%clk 0:02:54]}  e6 {[%clk 0:02:58]} 6. h3 {[%clk 0:02:53]}  Bh5 {[%clk 0:02:58]} 7. Nbd2 {[%clk 0:02:51]}  Nbd7 {[%clk 0:02:53]} 8. b3 {[%clk 0:02:50]}  c5 {[%clk 0:02:51]} 9. dxc5 {[%clk 0:02:48]}  Nxc5 {[%clk 0:02:51]} 10. O-O {[%clk 0:02:46]}  Be7 {[%clk 0:02:48]} 11. Bb2 {[%clk 0:02:45]}  O-O {[%clk 0:02:47]} 12. Be2 {[%clk 0:02:42]}  Bg6 {[%clk 0:02:45]} 13. Ne5 {[%clk 0:02:41]}  Nd5 {[%clk 0:02:32]} 14. Nxg6 {[%clk 0:02:38]}  hxg6 {[%clk 0:02:33]} 15. Nc4 {[%clk 0:02:38]}  Bf6 {[%clk 0:02:31]} 16. Bd4 {[%clk 0:02:26]}  Ne4 {[%clk 0:02:24]} 17. Bf3 {[%clk 0:02:24]}  Ndc3 {[%clk 0:02:09]} 18. Bxc3 {[%clk 0:02:12]}  Nxc3 {[%clk 0:02:10]} 19. Qc2 {[%clk 0:01:57]}  Qe7 {[%clk 0:02:05]} 20. e4 {[%clk 0:01:12]}  Bd4 {[%clk 0:01:56]} 21. Rae1 {[%clk 0:00:46]}  b5 {[%clk 0:01:49]} 22. Nd2 {[%clk 0:00:35]}  Rac8 {[%clk 0:01:44]} 23. Nb1 {[%clk 0:00:35]}  Qg5 {[%clk 0:01:23]} 24. Nxc3 {[%clk 0:00:25]}  Rxc3 {[%clk 0:01:24]} 25. Qe2 {[%clk 0:00:23]}  Rfc8 {[%clk 0:01:19]} 26. Rd1 {[%clk 0:00:17]}  Rc2 {[%clk 0:01:17]} 27. Qd3 {[%clk 0:00:11]}  Bb6 {[%clk 0:01:14]} 28. a4 {[%clk 0:00:05]}  R8c3 {[%clk 0:01:12]} 29. Qxb5 {[%clk 0:00:03]}  e5 {[%clk 0:01:02]} 30. Rd3 {[%clk 0:00:03]}  Rc8 {[%clk 0:00:24]} 31. a5 {[%clk 0:00:04]}  Bd4 {[%clk 0:00:23]} 32. Qd7 {[%clk 0:00:03]}  Rd8 {[%clk 0:00:22]} 33. Qb5 {[%clk 0:00:03]}  Rdc8 {[%clk 0:00:16]} 34. Rxd4 {[%clk 0:00:02]}  R2c5 {[%clk 0:00:14]} 0-1


[Site "https://www.chess.com"]

[Event "Titled Tuesday Blitz November 15 Late 2022"]
[White "Kaufman, Raymond"]
[Black "Ardila, Oscar Humberto"]
[WhiteFideId "2015056"]
[BlackFideId "4404742"]
[WhiteElo "2321"]
[BlackElo "1959"]
[Result "1-0"]
[Round "07"]
[TimeControl "180+1"]
[Date "2022.11.16"]
[WhiteClock "0:01:18"]
[BlackClock "0:00:05"]

1. e4 {[%clk 0:02:41]}  e5 {[%clk 0:02:57]} 2. Nf3 {[%clk 0:02:36]}  Nf6 {[%clk 0:02:57]} 3. Nxe5 {[%clk 0:02:35]}  d6 {[%clk 0:02:58]} 4. Nf3 {[%clk 0:02:35]}  Nxe4 {[%clk 0:02:58]} 5. Bd3 {[%clk 0:02:35]}  Nf6 {[%clk 0:02:58]} 6. O-O {[%clk 0:02:33]}  Be7 {[%clk 0:02:58]} 7. c3 {[%clk 0:02:32]}  O-O {[%clk 0:02:59]} 8. h3 {[%clk 0:02:31]}  Nbd7 {[%clk 0:02:59]} 9. Bc2 {[%clk 0:02:31]}  Ne5 {[%clk 0:02:59]} 10. d4 {[%clk 0:02:30]}  Ng6 {[%clk 0:02:58]} 11. Re1 {[%clk 0:02:29]}  Re8 {[%clk 0:02:58]} 12. Nbd2 {[%clk 0:02:29]}  Bd7 {[%clk 0:02:58]} 13. Nf1 {[%clk 0:02:25]}  Bc6 {[%clk 0:02:58]} 14. Ng3 {[%clk 0:02:24]}  Bf8 {[%clk 0:02:53]} 15. Nf5 {[%clk 0:02:21]}  Rxe1+ {[%clk 0:02:52]} 16. Qxe1 {[%clk 0:02:21]}  Qe8 {[%clk 0:02:52]} 17. Bg5 {[%clk 0:02:19]}  Qxe1+ {[%clk 0:02:49]} 18. Rxe1 {[%clk 0:02:19]}  Nd5 {[%clk 0:02:47]} 19. g3 {[%clk 0:02:09]}  Nxc3 {[%clk 0:02:43]} 20. bxc3 {[%clk 0:02:06]}  Bxf3 {[%clk 0:02:43]} 21. h4 {[%clk 0:02:04]}  h6 {[%clk 0:02:42]} 22. Bc1 {[%clk 0:02:03]}  Bg4 {[%clk 0:02:28]} 23. Ne3 {[%clk 0:01:57]}  Be6 {[%clk 0:02:23]} 24. h5 {[%clk 0:01:55]}  Ne7 {[%clk 0:02:20]} 25. c4 {[%clk 0:01:55]}  Re8 {[%clk 0:02:18]} 26. d5 {[%clk 0:01:55]}  Bd7 {[%clk 0:02:16]} 27. Bd2 {[%clk 0:01:54]}  Nc8 {[%clk 0:02:11]} 28. Rb1 {[%clk 0:01:49]}  Nb6 {[%clk 0:02:11]} 29. a4 {[%clk 0:01:50]}  Bxa4 {[%clk 0:02:01]} 30. Bxa4 {[%clk 0:01:49]}  Nxa4 {[%clk 0:02:01]} 31. Rxb7 {[%clk 0:01:50]}  Ra8 {[%clk 0:01:19]} 32. Ba5 {[%clk 0:01:44]}  Be7 {[%clk 0:01:05]} 33. Nf5 {[%clk 0:01:38]}  Bd8 {[%clk 0:00:51]} 34. Kg2 {[%clk 0:01:32]}  Nb6 {[%clk 0:00:50]} 35. Bxb6 {[%clk 0:01:29]}  axb6 {[%clk 0:00:50]} 36. Nd4 {[%clk 0:01:29]}  Bf6 {[%clk 0:00:38]} 37. Nb5 {[%clk 0:01:24]}  Bd8 {[%clk 0:00:30]} 38. Nxc7 {[%clk 0:01:22]}  Bxc7 {[%clk 0:00:22]} 39. Rxc7 {[%clk 0:01:22]}  Ra4 {[%clk 0:00:22]} 40. Rc6 {[%clk 0:01:21]}  Rb4 {[%clk 0:00:21]} 41. Rxd6 {[%clk 0:01:21]}  Rxc4 {[%clk 0:00:21]} 42. Rxb6 {[%clk 0:01:21]}  Rd4 {[%clk 0:00:22]} 43. d6 {[%clk 0:01:21]}  f5 {[%clk 0:00:16]} 44. Kf3 {[%clk 0:01:19]}  Kf7 {[%clk 0:00:16]} 45. Rb7+ {[%clk 0:01:19]}  Kf6 {[%clk 0:00:15]} 46. d7 {[%clk 0:01:19]}  Rd6 {[%clk 0:00:10]} 47. Rb6 {[%clk 0:01:18]}  Rxb6 {[%clk 0:00:05]} 48. d8=Q+ {[%clk 0:01:18]} 1-0


[Site "https://www.chess.com"]

[Event "Titled Tuesday Blitz November 15 Late 2022"]
[White "Kobo, Ori"]
[Black "Golubev, Mikhail"]
[WhiteFideId "2812320"]
[BlackFideId "14100983"]
[WhiteElo "2447"]
[BlackElo "2374"]
[Result "0-1"]
[Round "07"]
[TimeControl "180+1"]
[Date "2022.11.16"]
[WhiteClock "0:00:01"]
[BlackClock "0:00:14"]

1. e4 {[%clk 0:03:00]}  c5 {[%clk 0:02:59]} 2. Nc3 {[%clk 0:03:01]}  d6 {[%clk 0:02:58]} 3. Bb5+ {[%clk 0:02:59]}  Nd7 {[%clk 0:02:54]} 4. d4 {[%clk 0:02:55]}  cxd4 {[%clk 0:02:51]} 5. Qxd4 {[%clk 0:02:56]}  Nf6 {[%clk 0:02:51]} 6. Nge2 {[%clk 0:02:51]}  g6 {[%clk 0:02:50]} 7. Be3 {[%clk 0:02:46]}  Bg7 {[%clk 0:02:48]} 8. Qd2 {[%clk 0:02:46]}  O-O {[%clk 0:02:45]} 9. O-O {[%clk 0:02:45]}  a6 {[%clk 0:02:34]} 10. Bxd7 {[%clk 0:02:44]}  Bxd7 {[%clk 0:02:34]} 11. Bh6 {[%clk 0:02:43]}  Bxh6 {[%clk 0:02:28]} 12. Qxh6 {[%clk 0:02:44]}  Rc8 {[%clk 0:02:25]} 13. Qe3 {[%clk 0:01:49]}  b5 {[%clk 0:02:22]} 14. a3 {[%clk 0:01:49]}  Qc7 {[%clk 0:02:16]} 15. Rfd1 {[%clk 0:01:36]}  Qc5 {[%clk 0:02:13]} 16. Qxc5 {[%clk 0:01:27]}  Rxc5 {[%clk 0:02:12]} 17. f3 {[%clk 0:01:26]}  Rfc8 {[%clk 0:02:10]} 18. Nd4 {[%clk 0:01:14]}  Kf8 {[%clk 0:02:08]} 19. Rd2 {[%clk 0:01:11]}  R5c7 {[%clk 0:01:48]} 20. Nb3 {[%clk 0:01:02]}  Be6 {[%clk 0:01:41]} 21. Na5 {[%clk 0:00:58]}  Nd7 {[%clk 0:01:38]} 22. Rc1 {[%clk 0:00:50]}  Nb6 {[%clk 0:01:23]} 23. Nd1 {[%clk 0:00:50]}  Na4 {[%clk 0:01:14]} 24. c3 {[%clk 0:00:49]}  f5 {[%clk 0:01:08]} 25. exf5 {[%clk 0:00:45]}  gxf5 {[%clk 0:01:06]} 26. Kf2 {[%clk 0:00:34]}  Kf7 {[%clk 0:01:04]} 27. g3 {[%clk 0:00:34]}  Kf6 {[%clk 0:01:03]} 28. Ke1 {[%clk 0:00:25]}  Bf7 {[%clk 0:01:02]} 29. f4 {[%clk 0:00:24]}  h5 {[%clk 0:01:00]} 30. Nf2 {[%clk 0:00:22]}  h4 {[%clk 0:00:54]} 31. Ke2 {[%clk 0:00:18]}  hxg3 {[%clk 0:00:38]} 32. hxg3 {[%clk 0:00:19]}  Rg8 {[%clk 0:00:34]} 33. Rg1 {[%clk 0:00:19]}  Bh5+ {[%clk 0:00:34]} 34. Ke3 {[%clk 0:00:18]}  Nc5 {[%clk 0:00:31]} 35. Nd3 {[%clk 0:00:13]}  Ne4 {[%clk 0:00:29]} 36. Rdg2 {[%clk 0:00:13]}  e5 {[%clk 0:00:20]} 37. Nb3 {[%clk 0:00:13]}  Rcg7 {[%clk 0:00:18]} 38. fxe5+ {[%clk 0:00:03]}  dxe5 {[%clk 0:00:19]} 39. Ndc5 {[%clk 0:00:03]}  Nxg3 {[%clk 0:00:16]} 40. Kf2 {[%clk 0:00:03]}  f4 {[%clk 0:00:16]} 41. Rh2 {[%clk 0:00:02]}  e4 {[%clk 0:00:14]} 42. Rxh5 {[%clk 0:00:01]}  e3+ {[%clk 0:00:14]} 43. Kf3 {[%clk 0:00:01]}  Nxh5 {[%clk 0:00:14]} 0-1


[Site "https://www.chess.com"]

[Event "Titled Tuesday Blitz November 15 Late 2022"]
[White "Kollars, Dmitrij"]
[Black "Mikaelyan, Arman"]
[WhiteFideId "12909572"]
[BlackFideId "13304852"]
[WhiteElo "2584"]
[BlackElo "2456"]
[Result "0-1"]
[Round "07"]
[TimeControl "180+1"]
[Date "2022.11.15"]
[WhiteClock "0:00:02"]
[BlackClock "0:00:08"]

1. c4 {[%clk 0:03:00]}  c6 {[%clk 0:02:58]} 2. d4 {[%clk 0:02:59]}  d5 {[%clk 0:02:58]} 3. Nf3 {[%clk 0:03:00]}  Nf6 {[%clk 0:02:57]} 4. Nc3 {[%clk 0:03:00]}  e6 {[%clk 0:02:57]} 5. e3 {[%clk 0:03:00]}  Nbd7 {[%clk 0:02:57]} 6. Bd3 {[%clk 0:03:00]}  dxc4 {[%clk 0:02:57]} 7. Bxc4 {[%clk 0:03:01]}  Bd6 {[%clk 0:02:58]} 8. e4 {[%clk 0:02:58]}  b5 {[%clk 0:02:54]} 9. Bd3 {[%clk 0:02:30]}  e5 {[%clk 0:02:45]} 10. Bg5 {[%clk 0:02:30]}  h6 {[%clk 0:02:41]} 11. Bh4 {[%clk 0:02:29]}  exd4 {[%clk 0:02:37]} 12. Nxd4 {[%clk 0:02:27]}  Ne5 {[%clk 0:02:38]} 13. Bc2 {[%clk 0:02:10]}  Bc5 {[%clk 0:02:14]} 14. Nb3 {[%clk 0:01:41]}  Qxd1+ {[%clk 0:02:14]} 15. Rxd1 {[%clk 0:01:42]}  Bb6 {[%clk 0:02:14]} 16. a4 {[%clk 0:01:42]}  b4 {[%clk 0:01:54]} 17. Ne2 {[%clk 0:01:38]}  Nc4 {[%clk 0:01:48]} 18. a5 {[%clk 0:01:09]}  Nxa5 {[%clk 0:01:43]} 19. Nxa5 {[%clk 0:01:09]}  Bxa5 {[%clk 0:01:44]} 20. Ba4 {[%clk 0:01:08]}  O-O {[%clk 0:01:19]} 21. Bxc6 {[%clk 0:01:07]}  Rb8 {[%clk 0:01:20]} 22. O-O {[%clk 0:01:07]}  Rb6 {[%clk 0:01:19]} 23. Nd4 {[%clk 0:00:52]}  Ba6 {[%clk 0:01:19]} 24. Rfe1 {[%clk 0:00:48]}  b3 {[%clk 0:01:19]} 25. Re3 {[%clk 0:00:41]}  Ng4 {[%clk 0:01:19]} 26. Rxb3 {[%clk 0:00:37]}  Ne5 {[%clk 0:01:13]} 27. Bd5 {[%clk 0:00:34]}  Rc8 {[%clk 0:01:10]} 28. Ra3 {[%clk 0:00:29]}  Bd2 {[%clk 0:00:32]} 29. Rxa6 {[%clk 0:00:20]}  Rxa6 {[%clk 0:00:28]} 30. Bb7 {[%clk 0:00:20]}  Rd6 {[%clk 0:00:20]} 31. Nb5 {[%clk 0:00:18]}  Rcc6 {[%clk 0:00:09]} 32. Nxd6 {[%clk 0:00:13]}  Rxd6 {[%clk 0:00:10]} 33. Kf1 {[%clk 0:00:13]}  Rb6 {[%clk 0:00:06]} 34. Rxd2 {[%clk 0:00:09]}  Rxb7 {[%clk 0:00:07]} 35. Rc2 {[%clk 0:00:06]}  Nd3 {[%clk 0:00:06]} 36. Ke2 {[%clk 0:00:05]}  Nxb2 {[%clk 0:00:05]} 37. f3 {[%clk 0:00:05]}  Na4 {[%clk 0:00:05]} 38. Bf2 {[%clk 0:00:04]}  f6 {[%clk 0:00:03]} 39. Bd4 {[%clk 0:00:04]}  Kh7 {[%clk 0:00:03]} 40. Ra2 {[%clk 0:00:03]}  Nb6 {[%clk 0:00:03]} 41. Ra6 {[%clk 0:00:02]}  Nc8 {[%clk 0:00:02]} 42. Kd3 {[%clk 0:00:02]}  Rc7 {[%clk 0:00:02]} 43. Ra4 {[%clk 0:00:02]}  Rd7 {[%clk 0:00:02]} 44. Ra6 {[%clk 0:00:02]}  Ne7 {[%clk 0:00:02]} 45. Ke3 {[%clk 0:00:02]}  Nc8 {[%clk 0:00:02]} 46. h4 {[%clk 0:00:03]}  h5 {[%clk 0:00:02]} 47. Ra5 {[%clk 0:00:03]}  Kh6 {[%clk 0:00:02]} 48. g4 {[%clk 0:00:03]}  hxg4 {[%clk 0:00:03]} 49. fxg4 {[%clk 0:00:04]}  Kh7 {[%clk 0:00:03]} 50. g5 {[%clk 0:00:04]}  Kg8 {[%clk 0:00:04]} 51. gxf6 {[%clk 0:00:04]}  gxf6 {[%clk 0:00:05]} 52. Bxf6 {[%clk 0:00:05]}  Nb6 {[%clk 0:00:06]} 53. Bd4 {[%clk 0:00:05]}  Nc4+ {[%clk 0:00:06]} 54. Kd3 {[%clk 0:00:05]}  Nxa5 {[%clk 0:00:07]} 55. Kc3 {[%clk 0:00:05]}  Nc6 {[%clk 0:00:08]} 56. Bc5 {[%clk 0:00:06]}  Ne5 {[%clk 0:00:08]} 57. Bd4 {[%clk 0:00:06]}  Nf3 {[%clk 0:00:08]} 58. Be3 {[%clk 0:00:05]}  Nxh4 {[%clk 0:00:08]} 59. Kc4 {[%clk 0:00:05]}  Ng6 {[%clk 0:00:09]} 60. Bd4 {[%clk 0:00:05]}  Ne7 {[%clk 0:00:08]} 61. Kc5 {[%clk 0:00:05]}  Kf7 {[%clk 0:00:08]} 62. Bb2 {[%clk 0:00:05]}  Ke6 {[%clk 0:00:08]} 63. Kb5 {[%clk 0:00:04]}  Rd2 {[%clk 0:00:08]} 64. Bc3 {[%clk 0:00:05]}  Rc2 {[%clk 0:00:09]} 65. Bd4 {[%clk 0:00:05]}  Rd2 {[%clk 0:00:09]} 66. Bxa7 {[%clk 0:00:05]}  Re2 {[%clk 0:00:09]} 67. Bc5 {[%clk 0:00:05]}  Rxe4 {[%clk 0:00:09]} 68. Ba3 {[%clk 0:00:05]}  Kd5 {[%clk 0:00:09]} 69. Bb4 {[%clk 0:00:04]}  Nc6 {[%clk 0:00:10]} 70. Bc5 {[%clk 0:00:04]}  Re1 {[%clk 0:00:10]} 71. Bf8 {[%clk 0:00:04]}  Rb1+ {[%clk 0:00:10]} 72. Ka6 {[%clk 0:00:05]}  Kc4 {[%clk 0:00:09]} 73. Bd6 {[%clk 0:00:04]}  Kd5 {[%clk 0:00:09]} 74. Bf8 {[%clk 0:00:05]}  Ke6 {[%clk 0:00:10]} 75. Bc5 {[%clk 0:00:05]}  Kd7 {[%clk 0:00:10]} 76. Bf8 {[%clk 0:00:05]}  Re1 {[%clk 0:00:08]} 77. Bg7 {[%clk 0:00:04]}  Kc7 {[%clk 0:00:07]} 78. Kb5 {[%clk 0:00:04]}  Rg1 {[%clk 0:00:06]} 79. Bf6 {[%clk 0:00:04]}  Rg4 {[%clk 0:00:06]} 80. Kc5 {[%clk 0:00:03]}  Rf4 {[%clk 0:00:05]} 81. Bg7 {[%clk 0:00:03]}  Rf5+ {[%clk 0:00:05]} 82. Kc4 {[%clk 0:00:04]}  Kd6 {[%clk 0:00:06]} 83. Bb2 {[%clk 0:00:03]}  Rf4+ {[%clk 0:00:05]} 84. Kd3 {[%clk 0:00:04]}  Kd5 {[%clk 0:00:06]} 85. Ke3 {[%clk 0:00:04]}  Rb4 {[%clk 0:00:06]} 86. Bg7 {[%clk 0:00:04]}  Ra4 {[%clk 0:00:06]} 87. Kf3 {[%clk 0:00:03]}  Ne5+ {[%clk 0:00:07]} 88. Ke3 {[%clk 0:00:04]}  Ra3+ {[%clk 0:00:07]} 89. Kf4 {[%clk 0:00:04]}  Rf3+ {[%clk 0:00:07]} 90. Kg5 {[%clk 0:00:04]}  Ke6 {[%clk 0:00:08]} 91. Kh5 {[%clk 0:00:02]}  Rf1 {[%clk 0:00:08]} 0-1


[Site "https://www.chess.com"]

[Event "Titled Tuesday Blitz November 15 Late 2022"]
[White "Kujawski, Adam"]
[Black "Andronescu, Madalin"]
[WhiteFideId "1100920"]
[BlackFideId "1217275"]
[WhiteElo "2053"]
[BlackElo "1946"]
[Result "1-0"]
[Round "07"]
[TimeControl "180+1"]
[Date "2022.11.16"]
[WhiteClock "0:02:17"]
[BlackClock "0:01:08"]

1. e4 {[%clk 0:02:58]}  c5 {[%clk 0:02:59]} 2. Nf3 {[%clk 0:02:58]}  d6 {[%clk 0:03:00]} 3. d4 {[%clk 0:02:58]}  cxd4 {[%clk 0:03:00]} 4. Nxd4 {[%clk 0:02:59]}  Nf6 {[%clk 0:03:01]} 5. Nc3 {[%clk 0:03:00]}  a6 {[%clk 0:03:01]} 6. Bg5 {[%clk 0:03:00]}  e6 {[%clk 0:03:01]} 7. f4 {[%clk 0:03:00]}  Be7 {[%clk 0:03:01]} 8. Qf3 {[%clk 0:03:00]}  Nbd7 {[%clk 0:03:00]} 9. O-O-O {[%clk 0:03:00]}  Qc7 {[%clk 0:03:00]} 10. Bd3 {[%clk 0:02:59]}  b5 {[%clk 0:02:47]} 11. Rhe1 {[%clk 0:02:59]}  Bb7 {[%clk 0:02:46]} 12. Qg3 {[%clk 0:02:59]}  O-O-O {[%clk 0:02:40]} 13. e5 {[%clk 0:02:56]}  dxe5 {[%clk 0:02:30]} 14. fxe5 {[%clk 0:02:56]}  Nh5 {[%clk 0:02:30]} 15. Qh4 {[%clk 0:02:56]}  Bxg5+ {[%clk 0:02:22]} 16. Qxg5 {[%clk 0:02:57]}  g6 {[%clk 0:02:20]} 17. Bxb5 {[%clk 0:02:52]}  axb5 {[%clk 0:02:17]} 18. Ndxb5 {[%clk 0:02:52]}  Qa5 {[%clk 0:02:00]} 19. Nd6+ {[%clk 0:02:38]}  Kb8 {[%clk 0:02:00]} 20. Nxf7 {[%clk 0:02:34]}  Ndf6 {[%clk 0:01:21]} 21. Nxd8 {[%clk 0:02:17]}  Ne4 {[%clk 0:01:08]} 1-0


[Site "https://www.chess.com"]

[Event "Titled Tuesday Blitz November 15 Late 2022"]
[White "Kuzmicz, Krystian"]
[Black "Kamsky, Gata"]
[WhiteFideId "1119125"]
[BlackFideId "2000024"]
[WhiteElo "2380"]
[BlackElo "2666"]
[Result "0-1"]
[Round "07"]
[TimeControl "180+1"]
[Date "2022.11.15"]
[WhiteClock "0:01:05"]
[BlackClock "0:01:21"]

1. e4 {[%clk 0:03:00]}  e5 {[%clk 0:02:50]} 2. Bc4 {[%clk 0:02:58]}  Nc6 {[%clk 0:02:45]} 3. Qf3 {[%clk 0:02:55]}  Nf6 {[%clk 0:02:43]} 4. Ne2 {[%clk 0:02:55]}  Bc5 {[%clk 0:02:40]} 5. Nbc3 {[%clk 0:02:55]}  d6 {[%clk 0:02:40]} 6. d3 {[%clk 0:02:55]}  h6 {[%clk 0:02:36]} 7. h3 {[%clk 0:02:55]}  Be6 {[%clk 0:02:34]} 8. Be3 {[%clk 0:02:54]}  Bb6 {[%clk 0:02:14]} 9. O-O-O {[%clk 0:02:51]}  Qd7 {[%clk 0:02:00]} 10. Bxe6 {[%clk 0:02:32]}  fxe6 {[%clk 0:01:58]} 11. d4 {[%clk 0:02:33]}  O-O {[%clk 0:01:55]} 12. Qg3 {[%clk 0:02:27]}  Qf7 {[%clk 0:01:51]} 13. dxe5 {[%clk 0:02:20]}  Nxe5 {[%clk 0:01:50]} 14. Bxb6 {[%clk 0:02:08]}  axb6 {[%clk 0:01:49]} 15. f4 {[%clk 0:02:08]}  Nh5 {[%clk 0:01:48]} 16. Qe3 {[%clk 0:01:47]}  Nxf4 {[%clk 0:01:48]} 17. Kb1 {[%clk 0:01:47]}  Nxe2 {[%clk 0:01:46]} 18. Qxe2 {[%clk 0:01:46]}  Qf2 {[%clk 0:01:45]} 19. Qb5 {[%clk 0:01:44]}  c6 {[%clk 0:01:39]} 20. Qb3 {[%clk 0:01:43]}  d5 {[%clk 0:01:39]} 21. exd5 {[%clk 0:01:37]}  exd5 {[%clk 0:01:39]} 22. Rhe1 {[%clk 0:01:26]}  Nc4 {[%clk 0:01:34]} 23. Re2 {[%clk 0:01:24]}  Qc5 {[%clk 0:01:27]} 24. Rde1 {[%clk 0:01:18]}  b5 {[%clk 0:01:26]} 25. Nd1 {[%clk 0:01:15]}  b4 {[%clk 0:01:22]} 26. Re7 {[%clk 0:01:05]}  Nd2+ {[%clk 0:01:21]} 0-1


[Site "https://www.chess.com"]

[Event "Titled Tuesday Blitz November 15 Late 2022"]
[White "Melkumyan, Hrant"]
[Black "Gubajdullin, Alexei"]
[WhiteFideId "13302485"]
[BlackFideId "4141202"]
[WhiteElo "2604"]
[BlackElo "2230"]
[Result "0-1"]
[Round "07"]
[TimeControl "180+1"]
[Date "2022.11.15"]
[WhiteClock "0:00:22"]
[BlackClock "0:00:31"]

1. d4 {[%clk 0:03:00]}  Nf6 {[%clk 0:02:58]} 2. c4 {[%clk 0:03:01]}  g6 {[%clk 0:02:59]} 3. Nc3 {[%clk 0:03:00]}  Bg7 {[%clk 0:02:59]} 4. e4 {[%clk 0:03:00]}  O-O {[%clk 0:03:00]} 5. Be2 {[%clk 0:03:00]}  d6 {[%clk 0:03:01]} 6. h4 {[%clk 0:03:01]}  Na6 {[%clk 0:02:59]} 7. h5 {[%clk 0:03:01]}  c5 {[%clk 0:02:58]} 8. d5 {[%clk 0:03:01]}  e6 {[%clk 0:02:58]} 9. Bg5 {[%clk 0:02:58]}  h6 {[%clk 0:02:51]} 10. Be3 {[%clk 0:02:54]}  g5 {[%clk 0:02:49]} 11. Qd2 {[%clk 0:02:43]}  exd5 {[%clk 0:02:42]} 12. exd5 {[%clk 0:02:42]}  Re8 {[%clk 0:02:19]} 13. f3 {[%clk 0:02:35]}  Nb4 {[%clk 0:02:15]} 14. Rc1 {[%clk 0:02:33]}  Bf5 {[%clk 0:02:07]} 15. Kf2 {[%clk 0:02:22]}  Rxe3 {[%clk 0:02:02]} 16. Qxe3 {[%clk 0:02:16]}  Nfxd5 {[%clk 0:01:58]} 17. Nxd5 {[%clk 0:01:59]}  Bd4 {[%clk 0:01:58]} 18. Qxd4 {[%clk 0:01:58]}  cxd4 {[%clk 0:01:58]} 19. Nxb4 {[%clk 0:01:59]}  Qa5 {[%clk 0:01:48]} 20. a3 {[%clk 0:01:41]}  d3 {[%clk 0:01:48]} 21. Bxd3 {[%clk 0:01:12]}  Bxd3 {[%clk 0:01:46]} 22. Nxd3 {[%clk 0:01:13]}  Qd2+ {[%clk 0:01:46]} 23. Ne2 {[%clk 0:01:14]}  Qxd3 {[%clk 0:01:47]} 24. Rhd1 {[%clk 0:01:15]}  Qb3 {[%clk 0:01:40]} 25. Rd2 {[%clk 0:01:11]}  Re8 {[%clk 0:01:30]} 26. Nc3 {[%clk 0:01:04]}  Qxc4 {[%clk 0:01:26]} 27. Kg1 {[%clk 0:00:51]}  Re6 {[%clk 0:01:18]} 28. Rcd1 {[%clk 0:00:47]}  g4 {[%clk 0:01:14]} 29. Ne4 {[%clk 0:00:38]}  gxf3 {[%clk 0:01:04]} 30. gxf3 {[%clk 0:00:39]}  Kf8 {[%clk 0:01:04]} 31. Nxd6 {[%clk 0:00:21]}  Qc5+ {[%clk 0:00:59]} 32. Kf1 {[%clk 0:00:19]}  Qxh5 {[%clk 0:00:58]} 33. Ne4 {[%clk 0:00:19]}  Qxf3+ {[%clk 0:00:52]} 34. Nf2 {[%clk 0:00:20]}  h5 {[%clk 0:00:46]} 35. Rd3 {[%clk 0:00:19]}  Qe2+ {[%clk 0:00:43]} 36. Kg2 {[%clk 0:00:20]}  Rg6+ {[%clk 0:00:43]} 37. Rg3 {[%clk 0:00:21]}  Rxg3+ {[%clk 0:00:36]} 38. Kxg3 {[%clk 0:00:21]}  h4+ {[%clk 0:00:34]} 39. Kg2 {[%clk 0:00:22]}  h3+ {[%clk 0:00:34]} 40. Kg3 {[%clk 0:00:22]}  Qe3+ {[%clk 0:00:31]} 0-1


[Site "https://www.chess.com"]